[Event "Gibraltar Challengers A 2020"]
[Site "Caleta"]
[Date "2020.01.21"]
[Round "2.16"]
[White "Alami, Halim"]
[Black "Ajele, Rotimi"]
[Result "0-1"]
[ECO "C50"]
[WhiteElo "1987"]
[BlackElo "2188"]
[Annotator "ChessBase"]
[PlyCount "132"]
[EventDate "2020.01.20"]
[EventType "swiss"]
[EventCountry "GGB"]
[SourceTitle "playchess.com"]
[Source "ChessBase"]
[SourceQuality "1"]
[TimeControl "6600+10"]

1. e4 {[%emt 0:00:00]} e5 {[%emt 0:00:11]} 2. Nf3 {[%emt 0:01:45]} Nc6 {[%emt 0:01:40]} 3. Bc4 {[%emt 0:01:54]} Bc5 {[%emt 0:05:37]} 4. d3 {[%emt 0:01:01]} Nf6 {[%emt 0:00:30]} 5. Nc3 {[%emt 0:00:27]} O-O {[%emt 0:03:22]} 6. Bg5 {[%emt 0:01:47]} h6 {[%emt 0:01:44]} 7. Bh4 {[%emt 0:00:40]} Be7 {[%emt 0:01:26]} 8. h3 {[%emt 0:01:00]} d6 {[%emt 0:00:45]} 9. Ne2 {[%emt 0:06:24]} Na5 {[%emt 0:02:52]} 10. Bb3 {[%emt 0:00:58]} Nxb3 {[%emt 0:04:52]} 11. axb3 {[%emt 0:01:41]} g5 {[%emt 0:05:27]} 12. Bg3 {[%emt 0:00:32]} Nh5 {[%emt 0:00:14]} 13. Bh2 {[%emt 0:01:42]} Bf6 {[%emt 0:08:42]} 14. Qd2 {[%emt 0:03:12]} Nf4 {[%emt 0:03:14]} 15. Bxf4 {[%emt 0:00:45]} exf4 {[%emt 0:04:26]} 16. c4 {[%emt 0:06:39]} Bg7 {[%emt 0:02:44]} 17. g3 {[%emt 0:03:52]} fxg3 {[%emt 0:04:22]} 18. Nxg3 {[%emt 0:08:54]} Qf6 {[%emt 0:02:02]} 19. Ng1 {[%emt 0:03:26]} Qxb2 {[%emt 0:03:14]} 20. Qxb2 {[%emt 0:00:42]} Bxb2 {[%emt 0:00:13]} 21. Ra2 {[%emt 0:01:08]} Bc3+ {[%emt 0:00:38]} 22. Kf1 {[%emt 0:01:11]} f5 {[%emt 0:01:37]} 23. N1e2 {[%emt 0:06:15]} Bg7 {[%emt 0:03:08]} 24. exf5 {[%emt 0:04:37]} Bxf5 {[%emt 0:00:27]} 25. Nxf5 {[%emt 0:02:47]} Rxf5 {[%emt 0:04:08]} 26. Ng3 {[%emt 0:05:58]} Rf3 {[%emt 0:00:21]} 27. Rd2 {[%emt 0:01:47]} Raf8 {[%emt 0:09:47]} 28. Ne4 {[%emt 0:02:23]} Bd4 {[%emt 0:01:07]} 29. Kg2 {[%emt 0:02:23]} R3f5 {[%emt 0:01:20]} 30. h4 {[%emt 0:03:01]} Kg7 {[%emt 0:01:56]} 31. hxg5 {[%emt 0:00:55]} hxg5 {[%emt 0:00:03]} 32. Rh3 {[%emt 0:00:42]} Kg6 {[%emt 0:00:57]} 33. f3 {[%emt 0:03:22]} Ra5 {[%emt 0:00:31]} 34. Rh1 {[%emt 0:07:02]} Ra3 {[%emt 0:04:54]} 35. Rb1 {[%emt 0:00:36]} Rh8 {[%emt 0:00:40]} 36. Re2 {[%emt 0:01:47]} Re8 {[%emt 0:01:46]} 37. Kh1 {[%emt 0:03:07]} c6 {[%emt 0:01:31]} 38. Rc2 {[%emt 0:07:07]} d5 {[%emt 0:02:05]} 39. cxd5 {[%emt 0:00:51]} cxd5 {[%emt 0:00:02]} 40. Nf2 {[%emt 0:02:25]} Bxf2 {[%emt 0:00:55]} 41. Rxf2 {[%emt 0:00:02]} Re3 {[%emt 0:00:16]} 42. f4 {[%emt 0:01:13]} Rxd3 {[%emt 0:01:01]} 43. Rg2 {[%emt 0:01:22]} Raxb3 {[%emt 0:02:09]} 44. Rxg5+ {[%emt 0:00:14]} Kf6 {[%emt 0:00:03]} 45. Ra1 {[%emt 0:02:55]} a6 {[%emt 0:01:01]} 46. Rc1 {[%emt 0:00:42]} Rd2 {[%emt 0:00:47]} 47. Rh5 {[%emt 0:00:45]} a5 {[%emt 0:00:23]} 48. Rf1 {[%emt 0:00:54]} Rdd3 {[%emt 0:02:01]} 49. Rh6+ {[%emt 0:00:22]} Kg7 {[%emt 0:00:17]} 50. Rd6 {[%emt 0:00:19]} a4 {[%emt 0:00:51]} 51. f5 {[%emt 0:01:00]} Rh3+ {[%emt 0:00:37]} 52. Kg2 {[%emt 0:00:01]} Rbg3+ {[%emt 0:01:25]} 53. Kf2 {[%emt 0:00:01]} Rf3+ {[%emt 0:00:57]} 54. Ke2 {[%emt 0:00:01]} Rxf1 {[%emt 0:00:11]} 55. Kxf1 {[%emt 0:00:01]} Rb3 {[%emt 0:00:10]} 56. Ke2 {[%emt 0:01:01]} a3 {[%emt 0:00:12]} 57. Rxd5 {[%emt 0:00:25]} b5 {[%emt 0:00:20]} 58. Kd2 {[%emt 0:00:53]} b4 {[%emt 0:00:24]} 59. Ra5 {[%emt 0:00:22]} Kf6 {[%emt 0:00:33]} 60. Kc2 {[%emt 0:00:17]} Rb2+ {[%emt 0:00:08]} 61. Kd3 {[%emt 0:00:12]} a2 {[%emt 0:00:08]} 62. Ke4 {[%emt 0:00:17]} b3 {[%emt 0:00:13]} 63. Ra6+ {[%emt 0:00:01]} Kf7 {[%emt 0:00:06]} 64. Kf4 {[%emt 0:00:23]} Rb1 {[%emt 0:00:06]} 65. Ra7+ {[%emt 0:00:01]} Ke8 {[%emt 0:00:06]} 66. Ra8+ {[%emt 0:00:14]} Kd7 {[%emt 0:00:05]} 0-1

[Event "Gibraltar Challengers A 2020"]
[Site "Caleta"]
[Date "2020.01.21"]
[Round "2.17"]
[White "Patola, Eero"]
[Black "Lopez Gonzalez, Alfonso"]
[Result "0-1"]
[ECO "D10"]
[WhiteElo "1831"]
[BlackElo "2199"]
[Annotator "ChessBase"]
[PlyCount "36"]
[EventDate "2020.01.20"]
[EventType "swiss"]
[EventCountry "GGB"]
[SourceTitle "playchess.com"]
[Source "ChessBase"]
[SourceQuality "1"]
[TimeControl "6600+10"]

1. c4 {[%emt 0:08:40]} c6 {[%emt 0:00:09]} 2. Nc3 {[%emt 0:01:11]} d5 {[%emt 0:00:11]} 3. d4 {[%emt 0:00:30]} dxc4 {[%emt 0:00:10]} 4. e4 {[%emt 0:00:17]} b5 {[%emt 0:00:09]} 5. a4 {[%emt 0:01:25]} a6 {[%emt 0:00:05]} 6. axb5 {[%emt 0:01:05]} cxb5 {[%emt 0:00:06]} 7. Nxb5 {[%emt 0:01:06]} axb5 {[%emt 0:00:05]} 8. Rxa8 {[%emt 0:00:23]} Bb7 {[%emt 0:00:04]} 9. Rxb8 {[%emt 0:06:40]} Qxb8 {[%emt 0:00:08]} 10. d5 {[%emt 0:01:25]} Nf6 {[%emt 0:01:51]} 11. Qc2 {[%emt 0:03:13]} e6 {[%emt 0:02:09]} 12. dxe6 {[%emt 0:01:27]} Bxe4 {[%emt 0:01:29]} 13. exf7+ {[%emt 0:01:59]} Kxf7 {[%emt 0:00:07]} 14. Qc3 {[%emt 0:05:17]} Bc5 {[%emt 0:02:05]} 15. Nf3 {[%emt 0:11:02]} Re8 {[%emt 0:10:00]} 16. Ng5+ {[%emt 0:09:31]} Kg8 {[%emt 0:00:46]} 17. Nxe4 {[%emt 0:00:37]} Nxe4 {[%emt 0:00:41]} 18. Bxc4+ {[%emt 0:02:08]} Kh8 {[%emt 0:00:19]} 0-1

[Event "Gibraltar Challengers A 2020"]
[Site "Caleta"]
[Date "2020.01.21"]
[Round "2.18"]
[White "Vinas Guerrero, Carlos A."]
[Black "Kunnavakkam, Sudarshanagopal Vin"]
[Result "1-0"]
[ECO "B24"]
[WhiteElo "2092"]
[BlackElo "1786"]
[Annotator "NA"]
[PlyCount "41"]
[EventDate "2020.01.20"]
[EventType "swiss"]
[EventCountry "GGB"]
[SourceTitle "playchess.com"]
[Source "ChessBase"]
[SourceQuality "1"]
[TimeControl "6600+10"]

1. e4 {[%emt 0:00:00]} c5 {[%emt 0:00:42]} 2. Nc3 {[%emt 0:00:06]} Nc6 {[%emt 0:01:16]} 3. g3 {[%emt 0:00:57]} Nf6 {[%emt 0:01:03]} 4. Bg2 {[%emt 0:00:23]} e6 {[%emt 0:00:33]} 5. Nge2 {[%emt 0:00:54]} d5 {[%emt 0:03:59]} 6. exd5 {[%emt 0:01:07]} exd5 {[%emt 0:00:08]} 7. d4 {[%emt 0:00:21]} Bf5 {[%emt 0:03:30]} 8. Bg5 {[%emt 0:29:46]} Be7 {[%emt 0:18:24]} 9. O-O {[%emt 0:01:28]} cxd4 {[%emt 0:10:30]} 10. Nxd4 {[%emt 0:00:49]} Nxd4 {[%emt 0:00:59]} 11. Qxd4 {[%emt 0:00:15]} Bxc2 {[%emt 0:00:30]} 12. Rfe1 {[%emt 0:32:28]} Kf8 {[%emt 0:07:05]} 13. Rac1 {[%emt 0:23:46]} Bg6 {[%emt 0:01:16]} 14. Bxf6 {[%emt 0:08:27]} Bxf6 {[%emt 0:00:14]} 15. Qb4+ {[%emt 0:02:05]} Be7 {[%emt 0:07:42]} 16. Qxb7 {[%emt 0:00:17]} Rb8 $18 {[%emt 0:03:57]} 17. Qxa7 {[%emt 0:00:55]} Ra8 {[%emt 0:00:50]} 18. Qb7 {[%emt 0:02:05]} Rb8 {[%emt 0:00:05]} 19. Qxd5 {[%emt 0:01:04]} Rxb2 {[%emt 0:00:09]} 20. Rxe7 {[%emt 0:02:20]} Qxe7 {[%emt 0:00:20]} 21. Qa8+ {[%emt 0:00:23]} 1-0

[Event "Gibraltar Challengers A 2020"]
[Site "Caleta"]
[Date "2020.01.21"]
[Round "2.19"]
[White "Hari Charan Sai Kalluri"]
[Black "Hamer, Martyn"]
[Result "1-0"]
[WhiteElo "1836"]
[BlackElo "2069"]
[Annotator "NA"]
[PlyCount "23"]
[EventDate "2020.01.20"]
[EventType "swiss"]
[EventCountry "GGB"]
[SourceTitle "playchess.com"]
[Source "ChessBase"]
[SourceQuality "1"]
[TimeControl "6600+10"]

{[%evp 10,21,0,0,32767,32767,32767,32767,32767,19,20,32767,18,18]} 1. d4 {[%emt 0:00:00]} Nf6 {[%emt 0:00:00]} 2. Nf3 {[%emt 0:00:00]} g6 {[%emt 0:00:15]} 3. Nc3 {[%emt 0:00:05]} d5 {[%emt 0:00:08]} 4. Bf4 {[%emt 0:00:05]} Bg7 {[%emt 0:01:31]} 5. e3 {[%emt 0:00:08]} O-O {[%emt 0:00:25]} 6. Be2 {[%emt 0:00:04]} c5 {[%emt 0:01:19]} 7. Ne5 {[%emt 0:00:38]} cxd4 {[%emt 0:01:18]} 8. exd4 {[%emt 0:00:02]} Nc6 {[%emt 0:01:46]} 9. O-O {[%emt 0:00:07]} Qb6 {[%emt 0:05:37]} 10. Nxc6 {[%emt 0:00:06]} bxc6 {[%emt 0:00:40]} 11. Na4 $11 {[%emt 0:00:45]} Qa5 {[%emt 0:02:10]} 12. c3 {[%emt 0:02:21]} 1-0

[Event "Gibraltar Challengers A 2020"]
[Site "Caleta"]
[Date "2020.01.21"]
[Round "2.20"]
[White "Kukic, Boris"]
[Black "Hermes, Geoff R"]
[Result "1/2-1/2"]
[ECO "A41"]
[WhiteElo "2056"]
[BlackElo "1832"]
[Annotator "NA"]
[PlyCount "101"]
[EventDate "2020.01.20"]
[EventType "swiss"]
[EventCountry "GGB"]
[SourceTitle "playchess.com"]
[Source "ChessBase"]
[SourceQuality "1"]
[TimeControl "6600+10"]

1. d4 {[%emt 0:00:00]} d6 {[%emt 0:00:00]} 2. c4 {[%emt 0:00:27]} e5 {[%emt 0:00:06]} 3. Nf3 {[%emt 0:01:10]} e4 {[%emt 0:00:47]} 4. Nfd2 {[%emt 0:02:22]} f5 {[%emt 0:00:17]} 5. e3 {[%emt 0:00:25]} Nf6 {[%emt 0:00:26]} 6. Be2 {[%emt 0:00:36] A41: 1 d4 d6: Tartakower System and Modern Defence} Be7 {[%emt 0:00:10]} 7. Nc3 {[%emt 0:00:06]} O-O {[%emt 0:00:32]} (7... c6 8. Qc2 O-O 9. b4 Na6 10. a3 d5 11. Bb2 Nc7 12. c5 f4 13. exf4 Ne6 14. Nd1 Nxf4 15. Ne3 Nxe2 16. Kxe2 {0-1 (29) Bu,X (2730)-Adhiban,B (2655) Riadh 2017}) 8. O-O {[%emt 0:00:15]} c6 {[%emt 0:04:26]} 9. b4 {[%emt 0:00:40]} d5 {[%emt 0:00:36]} 10. Rb1 {[%emt 0:00:36]} Be6 $146 {[%emt 0:02:18]} ({Predecessor:} 10... Kh8 11. b5 g5 12. bxc6 bxc6 13. Nb3 Na6 14. cxd5 cxd5 15. Bd2 {0-1 (30) Baraeva,M (2176)-Dogodkina,J (2136) Loo 2013}) 11. a4 {[%emt 0:00:45]} b6 {[%emt 0:03:49]} 12. Qb3 {[%emt 0:00:16]} Nbd7 {[%emt 0:03:51]} 13. Ba3 {[%emt 0:00:18]} Bf7 {[%emt 0:08:06]} 14. Rbc1 {[%emt 0:00:56]} c5 {[%emt 0:11:56]} 15. Nxd5 {[%emt 0:08:46]} Nxd5 {[%emt 0:01:17]} 16. cxd5 {[%emt 0:00:09]} cxd4 {[%emt 0:01:41]} 17. exd4 {[%emt 0:01:14]} Nf6 {[%emt 0:00:22]} 18. b5 {[%emt 0:05:47]} Bxa3 {[%emt 0:02:43]} 19. Qxa3 {[%emt 0:00:15]} Bxd5 {[%emt 0:02:54]} 20. Nc4 {[%emt 0:01:09]} f4 {[%emt 0:05:50]} 21. Ne5 {[%emt 0:02:02]} f3 {[%emt 0:04:26]} 22. Bc4 {[%emt 0:00:31]} fxg2 {[%emt 0:01:11]} 23. Rfe1 {[%emt 0:00:33]} Bxc4 {[%emt 0:13:00]} 24. Rxc4 {[%emt 0:00:35]} Qd5 {[%emt 0:01:29]} 25. Qh3 {[%emt 0:07:27]} Rae8 {[%emt 0:03:57]} 26. Rec1 {[%emt 0:00:32]} e3 {[%emt 0:06:00]} 27. fxe3 {[%emt 0:04:00]} Ne4 {[%emt 0:01:38]} 28. Rc8 {[%emt 0:03:48]} Nf2 {[%emt 0:04:25]} 29. Qxg2 {[%emt 0:01:47]} Qxg2+ {[%emt 0:01:10]} 30. Kxg2 {[%emt 0:00:08]} Rxc8 {[%emt 0:00:19]} 31. Rxc8 {[%emt 0:00:08]} Rxc8 {[%emt 0:00:05]} 32. Kxf2 {[%emt 0:00:07]} Rc2+ {[%emt 0:00:24]} 33. Kg3 {[%emt 0:00:34]} Ra2 {[%emt 0:00:17]} 34. d5 {[%emt 0:00:20]} Kf8 {[%emt 0:00:26]} 35. Nc6 {[%emt 0:00:21]} Ke8 {[%emt 0:00:34]} 36. e4 {[%emt 0:01:46]} Rxa4 {[%emt 0:03:11]} 37. Kf4 {[%emt 0:00:16]} g5+ {[%emt 0:03:21]} ({Black should try} 37... a6 $17 38. bxa6 Rxa6) 38. Kf5 {[%emt 0:00:13]} g4 {[%emt 0:01:21]} 39. e5 {[%emt 0:00:08]} Ra5 {[%emt 0:03:10]} 40. Ke6 {[%emt 0:02:18]} Ra2 {[%emt 0:04:07]} 41. d6 {[%emt 0:00:09]} Rd2 {[%emt 0:00:18]} 42. Nb4 {[%emt 0:01:14]} h5 {[%emt 0:00:30]} (42... Kd8 $5) 43. Nd5 $1 {[%emt 0:00:42]} h4 $18 {[%emt 0:01:04]} ({Don't go for} 43... Rxh2 $2 44. Nf6+ Kd8 45. Kf7 $18) (43... Kd8 $11 44. Nf6 Re2) 44. Nf6+ {[%emt 0:00:09]} Kd8 {[%emt 0:00:45]} 45. Nxg4 {[%emt 0:00:06]} Rg2 {[%emt 0:00:39]} 46. Nf6 {[%emt 0:00:44]} Rxh2 {[%emt 0:00:25]} 47. Kd5 {[%emt 0:00:08]} Rd2+ {[%emt 0:00:22]} 48. Kc6 {[%emt 0:00:12]} Re2 {[%emt 0:01:07]} 49. Kd5 {[%emt 0:00:07]} Rd2+ {[%emt 0:00:09]} 50. Kc6 {[%emt 0:01:35]} Re2 {[%emt 0:00:07]} 51. Kd5 {[%emt 0:00:03]} 1/2-1/2

[Event "Gibraltar Challengers A 2020"]
[Site "Caleta"]
[Date "2020.01.21"]
[Round "2.21"]
[White "Tkadlecek, Petr"]
[Black "Huguet, Sergio"]
[Result "0-1"]
[ECO "A48"]
[WhiteElo "1775"]
[BlackElo "2055"]
[Annotator "NA"]
[PlyCount "112"]
[EventDate "2020.01.20"]
[EventType "swiss"]
[EventCountry "GGB"]
[SourceTitle "playchess.com"]
[Source "ChessBase"]
[SourceQuality "1"]
[TimeControl "6600+10"]

1. d4 {[%emt 0:00:09]} Nf6 {[%emt 0:00:11]} 2. Nf3 {[%emt 0:00:12]} g6 {[%emt 0:00:30]} 3. Bf4 {[%emt 0:01:13]} Bg7 {[%emt 0:00:27]} 4. e3 {[%emt 0:00:33]} b6 {[%emt 0:01:08]} 5. Be2 {[%emt 0:05:29]} (5. h3 Bb7 6. Be2 O-O 7. O-O d6 8. a4 Nbd7 9. a5 bxa5 10. Nbd2 c5 11. Nc4 Ba6 12. Nxa5 Bxe2 13. Qxe2 Qb6 14. c3 Ne4 15. Qc2 d5 16. Nd2 Nxd2 17. Qxd2 {1-0 (56) Carlsen,M (2832)-Guseinov,G (2645) chess.com INT 2017}) 5... Bb7 {[%emt 0:02:33]} 6. c4 {[%emt 0:01:33] A48: 1 d4 Nf6 2 Nf3 g6: Torre, London and Colle Systems} O-O {[%emt 0:02:03]} 7. Nc3 {[%emt 0:00:47]} d6 {[%emt 0:03:43]} 8. Bg5 {[%emt 0:02:11]} Nbd7 {[%emt 0:02:06]} 9. Qc2 {[%emt 0:03:23]} h6 $146 {[%emt 0:06:42]} ({Predecessor:} 9... Rc8 10. O-O d5 11. b3 c5 12. Qd1 Qc7 13. Rc1 e6 14. Nb5 Qb8 {1-0 (52) Cobo Carrillo,M-Raventos,J Spain 2003}) 10. Bh4 {[%emt 0:06:56]} e5 {[%emt 0:02:56]} 11. d5 {[%emt 0:02:16]} a5 {[%emt 0:03:51]} 12. Rd1 {[%emt 0:01:41]} Nc5 {[%emt 0:03:34]} 13. O-O {[%emt 0:04:25]} Qd7 {[%emt 0:13:01]} 14. Nd2 {[%emt 0:03:02]} Nh7 {[%emt 0:03:44]} 15. h3 {[%emt 0:06:14]} f5 {[%emt 0:01:28]} 16. Bg3 {[%emt 0:03:44]} Nf6 {[%emt 0:02:20]} 17. a3 {[%emt 0:05:16]} a4 {[%emt 0:01:18]} 18. f3 {[%emt 0:02:24]} g5 {[%emt 0:03:45]} 19. f4 {[%emt 0:02:28]} gxf4 {[%emt 0:04:43]} 20. exf4 {[%emt 0:01:32]} e4 {[%emt 0:00:19]} 21. Bf2 {[%emt 0:03:36]} Rfe8 {[%emt 0:06:45]} 22. Be3 {[%emt 0:02:20]} Re7 $11 {[%emt 0:04:42]} 23. Nb5 {[%emt 0:05:02]} Ba6 {[%emt 0:07:09]} 24. Nd4 {[%emt 0:01:25]} Nxd5 {[%emt 0:00:53]} 25. cxd5 {[%emt 0:17:24]} Bxd4 {[%emt 0:00:35]} 26. Nc4 {[%emt 0:08:04]} Bxe3+ {[%emt 0:04:26]} 27. Nxe3 {[%emt 0:00:18]} Bd3 {[%emt 0:01:31]} 28. Qd2 {[%emt 0:01:40]} Rf8 {[%emt 0:05:55]} 29. Rf2 {[%emt 0:01:14]} Bxe2 {[%emt 0:01:02]} 30. Qxe2 {[%emt 0:02:14]} Nd3 {[%emt 0:00:13]} 31. Rff1 {[%emt 0:01:56]} Qe8 {[%emt 0:02:02]} 32. Rd2 {[%emt 0:00:56]} Rg7 {[%emt 0:00:55]} 33. Rc2 {[%emt 0:01:27]} Qg6 {[%emt 0:01:49]} 34. g4 {[%emt 0:05:27]} Qf6 {[%emt 0:04:35]} 35. Kh2 {[%emt 0:01:43]} Qh4 {[%emt 0:04:22]} 36. Ng2 {[%emt 0:01:47]} Qe7 {[%emt 0:00:19]} 37. gxf5 {[%emt 0:01:07]} Rxf5 {[%emt 0:01:33]} 38. Rc4 {[%emt 0:00:23]} Nc5 {[%emt 0:02:41]} 39. Ne3 {[%emt 0:00:19]} Rf8 {[%emt 0:01:39]} 40. Rcc1 {[%emt 0:00:15]} Qh4 {[%emt 0:00:26]} 41. Ng2 {[%emt 0:00:24]} Qg3+ {[%emt 0:00:25]} 42. Kg1 {[%emt 0:00:27]} Rxf4 {[%emt 0:01:09]} 43. Rxf4 {[%emt 0:00:32]} Qxf4 {[%emt 0:00:07]} 44. Rf1 {[%emt 0:00:50]} Qg3 {[%emt 0:00:27]} 45. Rf2 {[%emt 0:00:33]} Nd3 {[%emt 0:00:53]} 46. Rf1 {[%emt 0:00:08]} Nf4 {[%emt 0:00:17]} 47. Qxe4 {[%emt 0:00:31]} Qxg2+ {[%emt 0:00:22]} 48. Qxg2 {[%emt 0:00:15]} Nxg2 {[%emt 0:00:02]} 49. Rf2 {[%emt 0:00:14]} Ne3+ {[%emt 0:00:08]} 50. Kh2 {[%emt 0:00:03]} Nxd5 {[%emt 0:00:08]} 51. Rf5 {[%emt 0:00:04]} Ne7 {[%emt 0:00:07]} 52. Rf4 {[%emt 0:00:15]} Rf7 {[%emt 0:00:06]} 53. Rxa4 {[%emt 0:00:03]} Rf2+ {[%emt 0:00:03]} 54. Kg3 {[%emt 0:00:02]} Rxb2 {[%emt 0:00:02]} 55. Ra8+ {[%emt 0:00:04]} Kf7 {[%emt 0:00:02]} 56. Ra7 {[%emt 0:00:05]} Rc2 {[%emt 0:00:04]} 0-1

[Event "Gibraltar Challengers A 2020"]
[Site "Caleta"]
[Date "2020.01.21"]
[Round "2.22"]
[White "Ankitha Goud Palle"]
[Black "Hladik, Lumir"]
[Result "1/2-1/2"]
[ECO "E17"]
[WhiteElo "1761"]
[BlackElo "2018"]
[Annotator "NA"]
[PlyCount "110"]
[EventDate "2020.01.20"]
[EventType "swiss"]
[EventCountry "GGB"]
[SourceTitle "playchess.com"]
[Source "ChessBase"]
[SourceQuality "1"]
[TimeControl "6600+10"]

1. Nf3 {[%emt 0:00:00]} Nf6 {[%emt 0:09:48]} 2. c4 {[%emt 0:00:21]} e6 {[%emt 0:01:22]} 3. g3 {[%emt 0:00:06]} b6 {[%emt 0:00:08]} 4. Bg2 {[%emt 0:00:20]} Bb7 {[%emt 0:00:51]} 5. O-O {[%emt 0:00:11]} Be7 {[%emt 0:00:31]} 6. b3 {[%emt 0:00:26]} O-O {[%emt 0:00:09]} 7. Bb2 {[%emt 0:00:05]} d6 {[%emt 0:01:23]} 8. d4 {[%emt 0:01:04]} Nbd7 {[%emt 0:00:31]} 9. Nc3 {[%emt 0:03:00]} Ne4 {[%emt 0:03:15]} 10. Qc2 {[%emt 0:03:15]} Nxc3 {[%emt 0:01:31] E17: Queen's Indian: 4 g3 Bb7 5 Bg2 Be7} 11. Bxc3 {[%emt 0:00:55]} Nf6 {[%emt 0:00:14]} (11... f5 12. d5 e5 13. Bh3 g6 14. e4 f4 15. b4 Bc8 16. Be6+ Kg7 17. g4 h6 18. h3 Nf6 19. Bxc8 Qxc8 20. Kh2 Nxg4+ 21. hxg4 Qxg4 {½-½ (21) Zhou,J (2635)-Wang,Y (2723) Shenzhen 2016}) 12. d5 $146 {[%emt 0:23:08]} ({Predecessor:} 12. Rfe1 Be4 13. Qb2 Qc8 14. Bf1 Bxf3 15. exf3 d5 16. Rac1 Qd7 17. Bd2 a5 18. Bf4 {1-0 (32) Arnaudov,P (2487)-Veleski,R (2262) Struga 2013}) 12... exd5 {[%emt 0:08:27]} 13. Ng5 {[%emt 0:00:17]} Ne4 {[%emt 0:00:15]} 14. Nxe4 {[%emt 0:00:15]} dxe4 {[%emt 0:00:12]} 15. Bxe4 {[%emt 0:00:19]} Bxe4 {[%emt 0:00:15]} 16. Qxe4 {[%emt 0:00:08]} Bf6 {[%emt 0:00:22]} 17. Bxf6 {[%emt 0:00:35]} Qxf6 {[%emt 0:00:09]} 18. e3 {[%emt 0:00:40]} Rae8 {[%emt 0:03:32]} 19. Qb7 {[%emt 0:04:36]} Re7 {[%emt 0:00:24]} 20. Qxa7 {[%emt 0:05:37]} Qf3 {[%emt 0:00:12]} 21. Qa3 {[%emt 0:01:14]} h5 {[%emt 0:01:08]} 22. Qc1 {[%emt 0:02:40]} h4 {[%emt 0:05:44]} 23. Qd1 {[%emt 0:07:04]} Qe4 {[%emt 0:00:33]} 24. Qd5 {[%emt 0:00:31]} Qg4 {[%emt 0:05:46]} 25. Rad1 {[%emt 0:06:04]} Re5 {[%emt 0:12:50]} 26. Rd4 {[%emt 0:03:27]} Qe2 {[%emt 0:06:07]} 27. Qg2 {[%emt 0:02:56]} hxg3 {[%emt 0:06:03]} 28. Qxg3 {[%emt 0:03:06]} Re6 {[%emt 0:00:31]} 29. Rg4 {[%emt 0:01:26]} g6 {[%emt 0:00:37]} 30. h4 {[%emt 0:01:23]} Kg7 {[%emt 0:01:13]} 31. h5 {[%emt 0:03:40]} (31. Kg2 $11) 31... Rh8 {[%emt 0:00:59]} 32. hxg6 {[%emt 0:00:50]} Rxg6 {[%emt 0:03:55]} 33. Rxg6+ {[%emt 0:01:10]} fxg6 {[%emt 0:00:09]} 34. Kg2 {[%emt 0:06:26]} Qxa2 {[%emt 0:00:45]} 35. Qg4 {[%emt 0:03:48]} Qa8+ {[%emt 0:01:38]} 36. Kg3 {[%emt 0:01:35]} Qe8 {[%emt 0:00:38]} 37. Qd4+ {[%emt 0:02:33]} Kg8 {[%emt 0:01:01]} 38. Ra1 {[%emt 0:03:04]} Rh5 {[%emt 0:02:48]} 39. Ra7 {[%emt 0:02:58]} Rg5+ {[%emt 0:03:19]} 40. Kf3 $11 {[%emt 0:01:41]} Rf5+ {[%emt 0:03:17]} 41. Ke2 {[%emt 0:00:23]} Qb8 {[%emt 0:01:54]} 42. Ra1 {[%emt 0:02:17]} Qf8 {[%emt 0:02:21]} 43. f4 {[%emt 0:01:34]} Qg7 {[%emt 0:02:31]} 44. Ra8+ {[%emt 0:00:46]} Rf8 {[%emt 0:01:28]} 45. Qd5+ {[%emt 0:02:36]} Kh7 {[%emt 0:00:58]} 46. Qh1+ {[%emt 0:01:17]} Kg8 {[%emt 0:00:12]} 47. Qd5+ {[%emt 0:00:38]} Kh7 {[%emt 0:00:50]} 48. Rxf8 {[%emt 0:02:50]} Qxf8 {[%emt 0:00:17]} 49. b4 {[%emt 0:00:21]} Qe7 {[%emt 0:01:24]} 50. b5 {[%emt 0:00:24]} Qd7 {[%emt 0:00:57]} 51. Kd3 {[%emt 0:00:31]} Kg7 {[%emt 0:01:01]} 52. Qd4+ {[%emt 0:00:05]} Kh7 {[%emt 0:01:21]} 53. Qe4 {[%emt 0:00:15]} Kg7 {[%emt 0:01:25]} 54. Qd4+ {[%emt 0:00:14]} Kh7 {[%emt 0:00:15]} 55. Qe4 {[%emt 0:00:07]} Kg7 {[%emt 0:00:50]} 1/2-1/2

[Event "Gibraltar Challengers A 2020"]
[Site "Caleta"]
[Date "2020.01.21"]
[Round "2.24"]
[White "Meszaros, Andras"]
[Black "Adewole, Adeyinka"]
[Result "1-0"]
[ECO "B06"]
[WhiteElo "2244"]
[BlackElo "1941"]
[Annotator "ChessBase"]
[PlyCount "33"]
[EventDate "2020.01.20"]
[EventType "swiss"]
[EventCountry "GGB"]
[SourceTitle "playchess.com"]
[Source "ChessBase"]
[SourceQuality "1"]
[TimeControl "6600+10"]

1. e4 {[%emt 0:06:32]} d6 {[%emt 0:00:40]} 2. d4 {[%emt 0:00:09]} g6 {[%emt 0:00:24]} 3. Nc3 {[%emt 0:00:25]} Nc6 {[%emt 0:00:30]} 4. d5 {[%emt 0:00:14]} Nb8 {[%emt 0:00:21]} 5. f4 {[%emt 0:00:27]} Bg7 {[%emt 0:00:07]} 6. Nf3 {[%emt 0:00:06]} c5 {[%emt 0:00:10]} 7. Bd3 {[%emt 0:00:25]} Bg4 {[%emt 0:01:25]} 8. h3 {[%emt 0:00:14]} Bd7 {[%emt 0:02:23]} 9. Qe2 {[%emt 0:01:27]} e5 {[%emt 0:00:44]} 10. fxe5 {[%emt 0:01:48]} dxe5 {[%emt 0:02:07]} 11. O-O {[%emt 0:00:44]} Qb6 {[%emt 0:03:14]} 12. Qf2 {[%emt 0:01:48]} f6 {[%emt 0:00:39]} 13. Nxe5 {[%emt 0:02:20]} Qc7 {[%emt 0:03:41]} 14. Nc4 {[%emt 0:01:59]} Bf8 {[%emt 0:11:41]} 15. e5 {[%emt 0:00:35]} b5 {[%emt 0:00:27]} 16. d6 {[%emt 0:04:09]} Qc8 {[%emt 0:05:13]} 17. exf6 {[%emt 0:01:31]} 1-0